[Event "*** Titled Tuesday Blitz"]
[Site "Chess.com"]
[Date "2019.10.01"]
[Round "3"]
[White "ahkashefi2800"]
[Black "SanchezKelvin"]
[Result "0-1"]
[WhiteElo "2171"]
[BlackElo "2522"]
[TimeControl "180+2"]
[EndTime "13:37:30 PDT"]
[Termination "SanchezKelvin won on time"]

1. d4 {[%clk 0:02:54.4]} 1... d5 {[%clk 0:02:55]} 2. c4 {[%clk 0:02:51.7]} 2...
c6 {[%clk 0:02:48.2]} 3. Nc3 {[%clk 0:02:51.7]} 3... Nf6 {[%clk 0:02:44.5]} 4.
Nf3 {[%clk 0:02:52.4]} 4... e6 {[%clk 0:02:45]} 5. Bf4 {[%clk 0:02:52.7]} 5...
dxc4 {[%clk 0:02:45.4]} 6. e4 {[%clk 0:02:52.5]} 6... b5 {[%clk 0:02:45.5]} 7.
a3 {[%clk 0:02:45.1]} 7... Bb7 {[%clk 0:02:37.5]} 8. g3 {[%clk 0:02:45.8]} 8...
Nbd7 {[%clk 0:02:25.4]} 9. Bg2 {[%clk 0:02:43.5]} 9... a6 {[%clk 0:02:21.4]} 10.
O-O {[%clk 0:02:44.3]} 10... Be7 {[%clk 0:02:19.8]} 11. Re1 {[%clk 0:02:45.1]}
11... O-O {[%clk 0:02:17.6]} 12. Qd2 {[%clk 0:02:45.9]} 12... Re8 {[%clk
0:02:10.1]} 13. Rad1 {[%clk 0:02:45.8]} 13... Qa5 {[%clk 0:02:02.2]} 14. h4
{[%clk 0:02:44.9]} 14... Bf8 {[%clk 0:01:57.4]} 15. Bg5 {[%clk 0:02:38.6]} 15...
h6 {[%clk 0:01:55.5]} 16. Be3 {[%clk 0:02:35.5]} 16... c5 {[%clk 0:01:53.4]} 17.
d5 {[%clk 0:02:36.2]} 17... exd5 {[%clk 0:01:43.9]} 18. exd5 {[%clk 0:02:38.1]}
18... Ng4 {[%clk 0:01:43.3]} 19. Bf4 {[%clk 0:02:31.9]} 19... b4 {[%clk
0:01:40.8]} 20. Ne4 {[%clk 0:02:31.2]} 20... Ndf6 {[%clk 0:01:37.7]} 21. Ne5
{[%clk 0:02:22.7]} 21... Nxe5 {[%clk 0:01:33.5]} 22. Nxf6+ {[%clk 0:01:29.1]}
22... gxf6 {[%clk 0:01:32.9]} 23. Qe2 {[%clk 0:01:24.6]} 23... Ng6 {[%clk
0:00:42.4]} 24. Qxc4 {[%clk 0:01:20.4]} 24... Nxf4 {[%clk 0:00:41]} 25. Qxf4
{[%clk 0:01:20.9]} 25... bxa3 {[%clk 0:00:39.4]} 26. Rxe8 {[%clk 0:01:19.3]}
26... Rxe8 {[%clk 0:00:39.6]} 27. bxa3 {[%clk 0:01:20]} 27... Re1+ {[%clk
0:00:39.8]} 28. Rxe1 {[%clk 0:01:19.8]} 28... Qxe1+ {[%clk 0:00:41.7]} 29. Kh2
{[%clk 0:01:21.1]} 29... Qe7 {[%clk 0:00:25.5]} 30. d6 {[%clk 0:01:18.7]} 30...
Qd7 {[%clk 0:00:22.5]} 31. Bh3 {[%clk 0:00:30.1]} 31... Qxd6 {[%clk 0:00:20.4]}
32. Qg4+ {[%clk 0:00:28.9]} 32... Kh8 {[%clk 0:00:21.3]} 33. Qf5 {[%clk
0:00:17.7]} 33... Qd5 {[%clk 0:00:21.6]} 0-1

[Event "*** Titled Tuesday Blitz"]
[Site "Chess.com"]
[Date "2019.10.01"]
[Round "3"]
[White "IMRosen"]
[Black "Jospem"]
[Result "0-1"]
[WhiteElo "2645"]
[BlackElo "2875"]
[TimeControl "180+2"]
[EndTime "13:37:31 PDT"]
[Termination "Jospem won on time"]

1. c4 {[%clk 0:03:01.9]} 1... c5 {[%clk 0:02:59.9]} 2. Nf3 {[%clk 0:03:02.3]}
2... Nc6 {[%clk 0:03:01.5]} 3. Nc3 {[%clk 0:03:02.7]} 3... g6 {[%clk 0:03:02.8]}
4. e3 {[%clk 0:03:01.9]} 4... Nf6 {[%clk 0:03:04]} 5. d4 {[%clk 0:03:03.6]} 5...
cxd4 {[%clk 0:03:05.9]} 6. exd4 {[%clk 0:03:05.2]} 6... d5 {[%clk 0:03:07.6]} 7.
cxd5 {[%clk 0:03:06.8]} 7... Nxd5 {[%clk 0:03:09.5]} 8. Bc4 {[%clk 0:03:08.4]}
8... Nb6 {[%clk 0:03:09.8]} 9. Bb3 {[%clk 0:03:00.5]} 9... Bg7 {[%clk
0:03:10.4]} 10. Be3 {[%clk 0:02:33.5]} 10... O-O {[%clk 0:02:51.2]} 11. h3
{[%clk 0:02:34.8]} 11... Na5 {[%clk 0:02:47.8]} 12. O-O {[%clk 0:02:18.4]} 12...
Nxb3 {[%clk 0:02:46.7]} 13. axb3 {[%clk 0:02:19.6]} 13... Be6 {[%clk 0:02:47.3]}
14. Re1 {[%clk 0:02:19.2]} 14... Bd5 {[%clk 0:02:45]} 15. Ra5 {[%clk 0:02:10.1]}
15... e6 {[%clk 0:02:44.7]} 16. Ra1 {[%clk 0:01:36.1]} 16... a6 {[%clk
0:02:40.7]} 17. Qd2 {[%clk 0:01:37.1]} 17... Bxb3 {[%clk 0:02:39.6]} 18. Bh6
{[%clk 0:01:25.8]} 18... Bd5 {[%clk 0:02:40.2]} 19. Qf4 {[%clk 0:01:23.1]} 19...
Qb8 {[%clk 0:02:33.8]} 20. Qh4 {[%clk 0:01:21.1]} 20... Bxf3 {[%clk 0:02:21.9]}
21. Bxg7 {[%clk 0:01:20.4]} 21... Kxg7 {[%clk 0:02:22.4]} 22. gxf3 {[%clk
0:01:21.8]} 22... Qd8 {[%clk 0:02:22.4]} 23. Qe4 {[%clk 0:01:19.3]} 23... Rb8
{[%clk 0:02:16.6]} 24. h4 {[%clk 0:01:16.4]} 24... Qf6 {[%clk 0:02:15]} 25. Kg2
{[%clk 0:01:09.3]} 25... Rfd8 {[%clk 0:02:14.7]} 26. Rad1 {[%clk 0:01:09.8]}
26... Nd5 {[%clk 0:02:14.6]} 27. Ne2 {[%clk 0:01:06.1]} 27... Rbc8 {[%clk
0:02:08.6]} 28. Rh1 {[%clk 0:01:01.9]} 28... h5 {[%clk 0:02:08.6]} 29. Rh3
{[%clk 0:01:02.7]} 29... b5 {[%clk 0:02:07.7]} 30. Rg3 {[%clk 0:01:03.8]} 30...
b4 {[%clk 0:02:00.4]} 31. b3 {[%clk 0:00:55.7]} 31... Nc3 {[%clk 0:01:52.4]} 32.
Nxc3 {[%clk 0:00:44.5]} 32... bxc3 {[%clk 0:01:54.3]} 33. f4 {[%clk 0:00:40.2]}
33... c2 {[%clk 0:01:54.5]} 34. Rc1 {[%clk 0:00:38.9]} 34... Rxd4 {[%clk
0:01:55.2]} 35. Qe2 {[%clk 0:00:26.1]} 35... Rxf4 {[%clk 0:01:35.7]} 36. Rxc2
{[%clk 0:00:23.4]} 36... Rxc2 {[%clk 0:01:37.1]} 37. Qxc2 {[%clk 0:00:25.3]}
37... Rxh4 {[%clk 0:01:36.2]} 38. Qe2 {[%clk 0:00:22.8]} 38... Rf4 {[%clk
0:01:35.6]} 39. Kg1 {[%clk 0:00:14.3]} 39... e5 {[%clk 0:01:34.1]} 40. Rg2
{[%clk 0:00:13]} 40... h4 {[%clk 0:01:31.4]} 41. b4 {[%clk 0:00:09.7]} 41... h3
{[%clk 0:01:32.3]} 42. Rg3 {[%clk 0:00:11.2]} 42... h2+ {[%clk 0:01:32]} 43. Kh1
{[%clk 0:00:10.1]} 43... Rxf2 {[%clk 0:01:32.8]} 44. Qxf2 {[%clk 0:00:02.2]}
44... Qxf2 {[%clk 0:01:34.7]} 45. Rg2 {[%clk 0:00:03.8]} 45... Qe1+ {[%clk
0:01:33.3]} 46. Kxh2 {[%clk 0:00:05.7]} 46... Qxb4 {[%clk 0:01:34.2]} 47. Rf2
{[%clk 0:00:06.7]} 47... a5 {[%clk 0:01:35]} 48. Kg2 {[%clk 0:00:06.4]} 48... a4
{[%clk 0:01:36.3]} 49. Kg1 {[%clk 0:00:07.3]} 49... a3 {[%clk 0:01:37.8]} 50.
Kg2 {[%clk 0:00:08.1]} 50... Qb3 {[%clk 0:01:39.3]} 51. Kg1 {[%clk 0:00:03.4]}
51... a2 {[%clk 0:01:40.5]} 52. Kg2 {[%clk 0:00:03.7]} 52... a1=Q {[%clk
0:01:41.1]} 53. Kh2 {[%clk 0:00:05.2]} 53... e4 {[%clk 0:01:42]} 54. Kg2 {[%clk
0:00:05.1]} 54... e3 {[%clk 0:01:43.5]} 55. Rf1 {[%clk 0:00:03.1]} 55... Qa8+
{[%clk 0:01:43.9]} 56. Kh2 {[%clk 0:00:03.6]} 56... e2 {[%clk 0:01:43.1]} 0-1

[Event "*** Titled Tuesday Blitz"]
[Site "Chess.com"]
[Date "2019.10.01"]
[Round "3"]
[White "przemekpiotrowski"]
[Black "Sjakkerntobi"]
[Result "1-0"]
[WhiteElo "2406"]
[BlackElo "2036"]
[TimeControl "180+2"]
[EndTime "13:37:34 PDT"]
[Termination "przemekpiotrowski won by resignation"]

1. d4 {[%clk 0:03:01.9]} 1... Nf6 {[%clk 0:03:00.7]} 2. Nf3 {[%clk 0:03:02.5]}
2... e6 {[%clk 0:03:01.8]} 3. g3 {[%clk 0:03:02]} 3... c5 {[%clk 0:03:02.7]} 4.
Bg2 {[%clk 0:03:02.7]} 4... Nc6 {[%clk 0:03:03.5]} 5. O-O {[%clk 0:03:02.9]}
5... Be7 {[%clk 0:03:02.4]} 6. c4 {[%clk 0:03:03.9]} 6... cxd4 {[%clk
0:03:02.5]} 7. Nxd4 {[%clk 0:03:04.8]} 7... O-O {[%clk 0:03:00.3]} 8. Nc3 {[%clk
0:03:04.5]} 8... a6 {[%clk 0:02:53.7]} 9. b3 {[%clk 0:02:58.9]} 9... Qc7 {[%clk
0:02:53.6]} 10. Bb2 {[%clk 0:02:59.3]} 10... d6 {[%clk 0:02:53.8]} 11. Rc1
{[%clk 0:03:00.2]} 11... Bd7 {[%clk 0:02:54.9]} 12. Nd5 {[%clk 0:02:58.7]} 12...
Qd8 {[%clk 0:02:21]} 13. Nxc6 {[%clk 0:02:10.5]} 13... Bxc6 {[%clk 0:02:19.4]}
14. Nxf6+ {[%clk 0:02:09.4]} 14... Bxf6 {[%clk 0:02:21.3]} 15. Bxf6 {[%clk
0:02:09.9]} 15... Qxf6 {[%clk 0:02:21.7]} 16. Bxc6 {[%clk 0:02:09.7]} 16... bxc6
{[%clk 0:02:23.6]} 17. Qxd6 {[%clk 0:02:11]} 17... Rac8 {[%clk 0:02:24.3]} 18.
Qa3 {[%clk 0:02:02.4]} 18... Qe5 {[%clk 0:02:18.9]} 19. e3 {[%clk 0:01:58.2]}
19... a5 {[%clk 0:02:18.6]} 20. Rfd1 {[%clk 0:01:58.4]} 20... Rfd8 {[%clk
0:02:15.1]} 21. Qe7 {[%clk 0:01:59.1]} 21... Rxd1+ {[%clk 0:02:11.2]} 22. Rxd1
{[%clk 0:02:01]} 22... h5 {[%clk 0:02:11.3]} 23. Rd7 {[%clk 0:01:45.9]} 23...
Qf5 {[%clk 0:02:05.1]} 24. e4 {[%clk 0:01:24]} 24... Qf3 {[%clk 0:01:57.4]} 25.
Rd8+ {[%clk 0:01:20.2]} 25... Rxd8 {[%clk 0:01:58.5]} 26. Qxd8+ {[%clk
0:01:22.1]} 26... Kh7 {[%clk 0:02:00.2]} 27. Qxa5 {[%clk 0:01:23.3]} 27... h4
{[%clk 0:01:54.7]} 28. Qg5 {[%clk 0:01:11.6]} 28... hxg3 {[%clk 0:01:45.2]} 29.
Qh4+ {[%clk 0:01:11.3]} 29... Kg8 {[%clk 0:01:44.1]} 30. hxg3 {[%clk 0:01:11.2]}
30... Qe2 {[%clk 0:01:41.1]} 31. Qd8+ {[%clk 0:01:02.6]} 31... Kh7 {[%clk
0:01:41.1]} 32. a4 {[%clk 0:00:43.8]} 32... Qe1+ {[%clk 0:01:37.2]} 33. Kg2
{[%clk 0:00:39.5]} 33... Qxe4+ {[%clk 0:01:38.2]} 34. Kh2 {[%clk 0:00:40.7]}
34... Qf3 {[%clk 0:01:36.4]} 35. Qb6 {[%clk 0:00:35.4]} 35... Qh5+ {[%clk
0:01:20.4]} 36. Kg2 {[%clk 0:00:35.4]} 36... c5 {[%clk 0:01:09.2]} 37. Qb7
{[%clk 0:00:33.1]} 37... Qd1 {[%clk 0:01:07.4]} 38. a5 {[%clk 0:00:32.6]} 38...
f5 {[%clk 0:01:06.7]} 39. a6 {[%clk 0:00:32.6]} 39... f4 {[%clk 0:01:06.7]} 40.
Qe4+ {[%clk 0:00:33]} 40... g6 {[%clk 0:01:07.8]} 41. Qxf4 {[%clk 0:00:32.9]}
41... Qxb3 {[%clk 0:01:09]} 42. g4 {[%clk 0:00:32.8]} 42... Qb6 {[%clk
0:01:06.5]} 43. Qf7+ {[%clk 0:00:29.2]} 43... Kh6 {[%clk 0:01:06.7]} 44. a7
{[%clk 0:00:29]} 44... Qc6+ {[%clk 0:01:07.2]} 45. Qf3 {[%clk 0:00:27.5]} 45...
Qd6 {[%clk 0:00:54.5]} 46. a8=Q {[%clk 0:00:26]} 46... Kg5 {[%clk 0:00:56.1]}
47. Qe3+ {[%clk 0:00:24.6]} 47... Qf4 {[%clk 0:00:55.3]} 48. Qd8+ {[%clk
0:00:24.2]} 48... Kh6 {[%clk 0:00:55]} 1-0

[Event "*** Titled Tuesday Blitz"]
[Site "Chess.com"]
[Date "2019.10.01"]
[Round "3"]
[White "heyiampotato"]
[Black "nitpicker"]
[Result "1-0"]
[WhiteElo "2529"]
[BlackElo "2264"]
[TimeControl "180+2"]
[EndTime "13:37:36 PDT"]
[Termination "heyiampotato won on time"]

1. d4 {[%clk 0:03:01.9]} 1... Nf6 {[%clk 0:03:00.2]} 2. Nf3 {[%clk 0:03:03]}
2... b6 {[%clk 0:03:00.3]} 3. c4 {[%clk 0:03:04]} 3... e6 {[%clk 0:03:00.1]} 4.
a3 {[%clk 0:03:03.7]} 4... Bb7 {[%clk 0:02:58.9]} 5. Nc3 {[%clk 0:03:04.3]} 5...
Ne4 {[%clk 0:02:59.7]} 6. Nxe4 {[%clk 0:03:04.5]} 6... Bxe4 {[%clk 0:03:00.6]}
7. Nd2 {[%clk 0:03:06.4]} 7... Bg6 {[%clk 0:02:54.9]} 8. g3 {[%clk 0:03:07]}
8... Be7 {[%clk 0:02:51.3]} 9. Bg2 {[%clk 0:03:05.2]} 9... d5 {[%clk 0:02:39]}
10. Qa4+ {[%clk 0:02:46.1]} 10... c6 {[%clk 0:02:35]} 11. O-O {[%clk 0:02:39.5]}
11... O-O {[%clk 0:02:35]} 12. e4 {[%clk 0:02:27.5]} 12... dxc4 {[%clk
0:02:14.9]} 13. Qxc4 {[%clk 0:02:24.8]} 13... b5 {[%clk 0:02:15.8]} 14. Qc3
{[%clk 0:02:15.6]} 14... Qb6 {[%clk 0:02:06.4]} 15. Nb3 {[%clk 0:02:07.3]} 15...
Nd7 {[%clk 0:01:56.1]} 16. Be3 {[%clk 0:02:07.6]} 16... Bf6 {[%clk 0:01:41.4]}
17. Rac1 {[%clk 0:02:03.4]} 17... Rac8 {[%clk 0:01:39.7]} 18. e5 {[%clk
0:01:53.2]} 18... Be7 {[%clk 0:01:35.7]} 19. d5 {[%clk 0:01:19.1]} 19... c5
{[%clk 0:01:03.3]} 20. d6 {[%clk 0:01:19.7]} 20... Bd8 {[%clk 0:00:45.2]} 21.
Nxc5 {[%clk 0:01:20]} 21... Nxc5 {[%clk 0:00:37.9]} 22. Bxc5 {[%clk 0:01:21.9]}
22... Qb8 {[%clk 0:00:38.9]} 23. d7 {[%clk 0:01:12.2]} 23... Rc7 {[%clk
0:00:38.5]} 24. Qd4 {[%clk 0:01:04.2]} 24... Rxc5 {[%clk 0:00:29.5]} 25. Qxc5
{[%clk 0:01:04.8]} 25... Bb6 {[%clk 0:00:29.2]} 26. Qc8 {[%clk 0:00:59.6]} 26...
Qxe5 {[%clk 0:00:27.9]} 27. Qe8 {[%clk 0:00:44.1]} 27... f6 {[%clk 0:00:22.2]}
28. Qe7 {[%clk 0:00:39.9]} 28... Bd8 {[%clk 0:00:19.1]} 29. Qc5 {[%clk
0:00:37.9]} 29... Qxb2 {[%clk 0:00:18]} 30. Qd6 {[%clk 0:00:28.5]} 30... Bf7
{[%clk 0:00:17.4]} 31. Rb1 {[%clk 0:00:27]} 31... Qe2 {[%clk 0:00:16.1]} 32.
Rfe1 {[%clk 0:00:26.3]} 32... Qc4 {[%clk 0:00:17.2]} 33. Rec1 {[%clk 0:00:18.6]}
33... Qa2 {[%clk 0:00:16.9]} 34. Rxb5 {[%clk 0:00:16.4]} 34... h6 {[%clk
0:00:08.9]} 35. h4 {[%clk 0:00:15.8]} 35... Bb6 {[%clk 0:00:08.1]} 36. Rxb6
{[%clk 0:00:15.2]} 36... axb6 {[%clk 0:00:03.7]} 37. Qxf8+ {[%clk 0:00:15.9]}
1-0

[Event "*** Titled Tuesday Blitz"]
[Site "Chess.com"]
[Date "2019.10.01"]
[Round "3"]
[White "Rodalquilar"]
[Black "GremioPrudente"]
[Result "1-0"]
[WhiteElo "2544"]
[BlackElo "2266"]
[TimeControl "180+2"]
[EndTime "13:37:41 PDT"]
[Termination "Rodalquilar won by resignation"]

1. d4 {[%clk 0:03:01.9]} 1... d5 {[%clk 0:03:00.3]} 2. Nf3 {[%clk 0:03:01.9]}
2... c6 {[%clk 0:02:59.7]} 3. Bf4 {[%clk 0:03:01.5]} 3... e6 {[%clk 0:02:57.7]}
4. e3 {[%clk 0:03:02]} 4... Bd6 {[%clk 0:02:58.5]} 5. Bd3 {[%clk 0:03:01]} 5...
Bxf4 {[%clk 0:02:58.7]} 6. exf4 {[%clk 0:03:02.9]} 6... f5 {[%clk 0:02:57.8]} 7.
O-O {[%clk 0:03:02.8]} 7... Nf6 {[%clk 0:02:58.9]} 8. Re1 {[%clk 0:03:03.5]}
8... O-O {[%clk 0:02:58.8]} 9. c4 {[%clk 0:03:02.8]} 9... Ne4 {[%clk 0:02:55.5]}
10. Nc3 {[%clk 0:03:03.6]} 10... Nd7 {[%clk 0:02:51.9]} 11. Qc2 {[%clk
0:03:04.1]} 11... Ndf6 {[%clk 0:02:46.6]} 12. Ne5 {[%clk 0:03:04]} 12... Bd7
{[%clk 0:02:40]} 13. f3 {[%clk 0:03:01.9]} 13... Nxc3 {[%clk 0:02:40.9]} 14.
Qxc3 {[%clk 0:03:03.8]} 14... Re8 {[%clk 0:02:23.2]} 15. Kh1 {[%clk 0:03:01.2]}
15... Re7 {[%clk 0:02:12.6]} 16. Qb4 {[%clk 0:03:00.8]} 16... Rb8 {[%clk
0:02:07.4]} 17. a4 {[%clk 0:03:00.7]} 17... Be8 {[%clk 0:02:07.7]} 18. a5 {[%clk
0:03:01.5]} 18... a6 {[%clk 0:02:07.5]} 19. Qc3 {[%clk 0:02:45.5]} 19... Nd7
{[%clk 0:02:01.3]} 20. Rad1 {[%clk 0:02:39.3]} 20... Nxe5 {[%clk 0:02:01.6]} 21.
Rxe5 {[%clk 0:02:39.7]} 21... Bd7 {[%clk 0:01:54.9]} 22. Rde1 {[%clk 0:02:40.2]}
22... Rf7 {[%clk 0:01:54.7]} 23. b3 {[%clk 0:02:36.3]} 23... Qh4 {[%clk
0:01:49.5]} 24. g3 {[%clk 0:02:36]} 24... Qf6 {[%clk 0:01:49.5]} 25. Qb4 {[%clk
0:02:24.5]} 25... Qd8 {[%clk 0:01:36.7]} 26. Qd6 {[%clk 0:02:21.2]} 26... Qf8
{[%clk 0:01:31.6]} 27. Qc7 {[%clk 0:02:12.2]} 27... Qc8 {[%clk 0:01:26.5]} 28.
Qb6 {[%clk 0:02:10.4]} 28... Qd8 {[%clk 0:01:26]} 29. c5 {[%clk 0:02:01.5]}
29... Qxb6 {[%clk 0:01:22.5]} 30. axb6 {[%clk 0:02:03.4]} 30... Rd8 {[%clk
0:01:17.4]} 31. b4 {[%clk 0:02:04.5]} 31... g6 {[%clk 0:01:17.8]} 32. h4 {[%clk
0:02:05]} 32... h5 {[%clk 0:01:18.2]} 33. Kg2 {[%clk 0:02:06.3]} 33... Kg7
{[%clk 0:01:18.3]} 34. Kf2 {[%clk 0:02:07.7]} 34... Bc8 {[%clk 0:01:16.5]} 35.
Ke3 {[%clk 0:02:03.7]} 35... Re7 {[%clk 0:01:13]} 36. Rg1 {[%clk 0:02:03.4]}
36... Kf7 {[%clk 0:01:13.8]} 37. g4 {[%clk 0:02:03.4]} 37... Rg8 {[%clk
0:01:08.3]} 38. Kd2 {[%clk 0:01:59.3]} 38... Rh8 {[%clk 0:01:06.3]} 39. gxf5
{[%clk 0:01:51.7]} 39... exf5 {[%clk 0:01:02.2]} 40. Rxe7+ {[%clk 0:01:51.6]}
40... Kxe7 {[%clk 0:01:03.1]} 41. Rxg6 {[%clk 0:01:53.2]} 41... Kf7 {[%clk
0:00:57.5]} 42. Rg5 {[%clk 0:01:45.1]} 42... Kf6 {[%clk 0:00:57]} 43. Kc3 {[%clk
0:01:45.3]} 43... Be6 {[%clk 0:00:50.7]} 44. Kb2 {[%clk 0:01:43.6]} 44... Bd7
{[%clk 0:00:51.7]} 45. Ka3 {[%clk 0:01:44.7]} 45... Be6 {[%clk 0:00:52.7]} 46.
Ka4 {[%clk 0:01:45.9]} 46... Bd7 {[%clk 0:00:53.9]} 47. Ka5 {[%clk 0:01:47.1]}
47... Be6 {[%clk 0:00:55.1]} 48. Bxa6 {[%clk 0:01:21.5]} 48... bxa6 {[%clk
0:00:55.5]} 49. b7 {[%clk 0:01:20.2]} 49... Rb8 {[%clk 0:00:41.7]} 50. Kxa6
{[%clk 0:01:14.8]} 50... Bc8 {[%clk 0:00:41.7]} 51. bxc8=Q {[%clk 0:01:14.3]}
51... Rxc8 {[%clk 0:00:42.7]} 52. Rxh5 {[%clk 0:01:15]} 52... Rb8 {[%clk
0:00:40.6]} 53. Ka5 {[%clk 0:01:15.5]} 53... Kg6 {[%clk 0:00:38.4]} 54. Rg5+
{[%clk 0:01:16.2]} 54... Kf6 {[%clk 0:00:39.1]} 55. h5 {[%clk 0:01:17.7]} 55...
Ra8+ {[%clk 0:00:37.2]} 56. Kb6 {[%clk 0:01:18.8]} 56... Rb8+ {[%clk 0:00:39.1]}
57. Kxc6 {[%clk 0:01:19.8]} 57... Rxb4 {[%clk 0:00:40.9]} 58. Kxd5 {[%clk
0:01:21.2]} 1-0

[Event "*** Titled Tuesday Blitz"]
[Site "Chess.com"]
[Date "2019.10.01"]
[Round "3"]
[White "Qvalda"]
[Black "Torrentec"]
[Result "1-0"]
[WhiteElo "2542"]
[BlackElo "2330"]
[TimeControl "180+2"]
[EndTime "13:37:44 PDT"]
[Termination "Qvalda won by resignation"]

1. d4 {[%clk 0:02:56.6]} 1... d5 {[%clk 0:02:59.5]} 2. Nf3 {[%clk 0:02:56.4]}
2... Nf6 {[%clk 0:03:00.2]} 3. c4 {[%clk 0:02:57.8]} 3... c6 {[%clk 0:03:01.3]}
4. Qb3 {[%clk 0:02:58]} 4... g6 {[%clk 0:03:00.2]} 5. e3 {[%clk 0:02:55]} 5...
Bg7 {[%clk 0:03:01.2]} 6. Nc3 {[%clk 0:02:55.8]} 6... O-O {[%clk 0:03:01.9]} 7.
Be2 {[%clk 0:02:55.1]} 7... a5 {[%clk 0:02:58.8]} 8. O-O {[%clk 0:02:45]} 8...
Na6 {[%clk 0:02:55.5]} 9. cxd5 {[%clk 0:02:45.4]} 9... Nxd5 {[%clk 0:02:49.6]}
10. Nxd5 {[%clk 0:02:45.7]} 10... Qxd5 {[%clk 0:02:49.1]} 11. Qxd5 {[%clk
0:02:46.1]} 11... cxd5 {[%clk 0:02:50.3]} 12. a3 {[%clk 0:02:46.5]} 12... Bd7
{[%clk 0:02:48.2]} 13. Bd2 {[%clk 0:02:47.4]} 13... Nc7 {[%clk 0:02:47.1]} 14.
Rfc1 {[%clk 0:02:46.9]} 14... Rfc8 {[%clk 0:02:43.1]} 15. Rc2 {[%clk 0:02:34.4]}
15... b6 {[%clk 0:02:16.6]} 16. Rac1 {[%clk 0:02:34.5]} 16... Ne6 {[%clk
0:02:12.9]} 17. Bd3 {[%clk 0:02:07]} 17... Rxc2 {[%clk 0:02:11.8]} 18. Rxc2
{[%clk 0:02:08.9]} 18... Rc8 {[%clk 0:02:09.7]} 19. Rxc8+ {[%clk 0:02:08.9]}
19... Bxc8 {[%clk 0:02:11.6]} 20. Kf1 {[%clk 0:02:10.1]} 20... Nc7 {[%clk
0:01:59.5]} 21. Ke2 {[%clk 0:01:57.9]} 21... h6 {[%clk 0:01:56.2]} 22. Ne1
{[%clk 0:01:55.7]} 22... Kf8 {[%clk 0:01:55.1]} 23. f3 {[%clk 0:01:56.9]} 23...
Ke8 {[%clk 0:01:55.4]} 24. b4 {[%clk 0:01:54.6]} 24... axb4 {[%clk 0:01:54.8]}
25. Bxb4 {[%clk 0:01:54.6]} 25... Bd7 {[%clk 0:01:40.9]} 26. Nc2 {[%clk
0:01:51.4]} 26... Bb5 {[%clk 0:01:16.1]} 27. Bxb5+ {[%clk 0:01:52]} 27... Nxb5
{[%clk 0:01:18]} 28. a4 {[%clk 0:01:50.8]} 28... Na7 {[%clk 0:01:14.7]} 29. Kd3
{[%clk 0:01:49.3]} 29... Nc6 {[%clk 0:01:15.4]} 30. e4 {[%clk 0:01:47.9]} 30...
dxe4+ {[%clk 0:01:12.6]} 31. fxe4 {[%clk 0:01:47.6]} 31... Bxd4 {[%clk
0:01:11.9]} 32. Nxd4 {[%clk 0:01:07]} 32... Nxb4+ {[%clk 0:01:11.7]} 33. Kc4
{[%clk 0:01:07.6]} 33... Na6 {[%clk 0:01:10.9]} 34. Kb5 {[%clk 0:01:05.8]} 34...
Nc5 {[%clk 0:01:10.5]} 35. e5 {[%clk 0:01:02.9]} 35... Kd7 {[%clk 0:01:07.4]}
36. a5 {[%clk 0:00:57.5]} 36... Ne4 {[%clk 0:00:50.4]} 37. Kxb6 {[%clk
0:00:47.7]} 37... Nd2 {[%clk 0:00:47.1]} 38. a6 {[%clk 0:00:44.5]} 38... Nc4+
{[%clk 0:00:47.8]} 39. Kb7 {[%clk 0:00:33.6]} 39... Na5+ {[%clk 0:00:36.3]} 40.
Kb8 {[%clk 0:00:33.1]} 40... Nc4 {[%clk 0:00:33.7]} 41. a7 {[%clk 0:00:28.2]}
41... Nb6 {[%clk 0:00:32.8]} 42. Kb7 {[%clk 0:00:29.3]} 1-0

[Event "*** Titled Tuesday Blitz"]
[Site "Chess.com"]
[Date "2019.10.01"]
[Round "3"]
[White "GadimbayliA"]
[Black "Witik"]
[Result "1-0"]
[WhiteElo "2872"]
[BlackElo "2641"]
[TimeControl "180+2"]
[EndTime "13:37:51 PDT"]
[Termination "GadimbayliA won by resignation"]

1. e4 {[%clk 0:03:01.9]} 1... c6 {[%clk 0:02:59.6]} 2. Nf3 {[%clk 0:03:02.7]}
2... d5 {[%clk 0:03:01.5]} 3. exd5 {[%clk 0:03:04.6]} 3... cxd5 {[%clk
0:03:02.8]} 4. Ne5 {[%clk 0:03:05.7]} 4... Nf6 {[%clk 0:03:02.7]} 5. d4 {[%clk
0:03:06.8]} 5... g6 {[%clk 0:03:03.4]} 6. c3 {[%clk 0:03:06.9]} 6... Bg7 {[%clk
0:03:04]} 7. Bd3 {[%clk 0:03:07.4]} 7... O-O {[%clk 0:03:05.4]} 8. Nd2 {[%clk
0:03:05.1]} 8... Nfd7 {[%clk 0:03:05.8]} 9. f4 {[%clk 0:03:04.1]} 9... Nf6
{[%clk 0:02:47]} 10. O-O {[%clk 0:03:02.2]} 10... Bf5 {[%clk 0:02:47.3]} 11.
Bxf5 {[%clk 0:02:56]} 11... gxf5 {[%clk 0:02:47.9]} 12. Rf3 {[%clk 0:02:57.9]}
12... Ne4 {[%clk 0:02:29.4]} 13. Nxe4 {[%clk 0:02:57.8]} 13... dxe4 {[%clk
0:02:03.9]} 14. Rh3 {[%clk 0:02:58.4]} 14... e6 {[%clk 0:01:45.2]} 15. Qh5
{[%clk 0:02:54.8]} 15... h6 {[%clk 0:01:45.5]} 16. Rg3 {[%clk 0:02:56]} 16...
Qf6 {[%clk 0:01:32.3]} 17. Be3 {[%clk 0:02:56.1]} 17... Rd8 {[%clk 0:01:19.3]}
18. Rd1 {[%clk 0:02:15.6]} 18... Nc6 {[%clk 0:01:19.1]} 19. d5 {[%clk
0:02:13.2]} 19... Ne7 {[%clk 0:00:43.8]} 20. Bd4 {[%clk 0:02:00.2]} 20... Rxd5
{[%clk 0:00:42.6]} 21. Nd7 {[%clk 0:01:53.9]} 21... Qg6 {[%clk 0:00:27.8]} 22.
Rxg6 {[%clk 0:01:43]} 22... fxg6 {[%clk 0:00:29.7]} 23. Qe2 {[%clk 0:01:32.8]}
23... Rxd7 {[%clk 0:00:24.3]} 24. Bxg7 {[%clk 0:01:28.4]} 24... Rxd1+ {[%clk
0:00:25]} 25. Qxd1 {[%clk 0:01:30.3]} 25... Kxg7 {[%clk 0:00:26.9]} 26. Qd7
{[%clk 0:01:27.9]} 26... Kf7 {[%clk 0:00:27.3]} 27. Kf2 {[%clk 0:01:28.9]} 27...
g5 {[%clk 0:00:21.3]} 28. fxg5 {[%clk 0:01:25.3]} 28... hxg5 {[%clk 0:00:22.3]}
29. Qxb7 {[%clk 0:01:23]} 29... Rd8 {[%clk 0:00:23.2]} 30. Ke2 {[%clk
0:01:24.4]} 30... Rd3 {[%clk 0:00:20.7]} 31. a4 {[%clk 0:01:19.2]} 31... Kf6
{[%clk 0:00:22]} 32. Qxa7 {[%clk 0:01:17.2]} 32... f4 {[%clk 0:00:21.4]} 33. Qb7
{[%clk 0:01:12]} 33... g4 {[%clk 0:00:19.9]} 34. Qxe4 {[%clk 0:00:43]} 34...
Re3+ {[%clk 0:00:20]} 35. Qxe3 {[%clk 0:00:44.5]} 35... fxe3 {[%clk 0:00:21.9]}
36. a5 {[%clk 0:00:46.1]} 36... Ke5 {[%clk 0:00:20.1]} 37. a6 {[%clk 0:00:47.1]}
37... Nc6 {[%clk 0:00:20.6]} 38. Kxe3 {[%clk 0:00:46.6]} 38... Kd5 {[%clk
0:00:20.3]} 39. Kf4 {[%clk 0:00:44.7]} 39... Kc4 {[%clk 0:00:21.5]} 40. Kxg4
{[%clk 0:00:41.8]} 40... e5 {[%clk 0:00:21.7]} 41. Kf5 {[%clk 0:00:31.9]} 41...
Kd3 {[%clk 0:00:19.4]} 42. a7 {[%clk 0:00:23.1]} 42... Nxa7 {[%clk 0:00:20.4]}
43. Kxe5 {[%clk 0:00:24.6]} 43... Kc2 {[%clk 0:00:20.9]} 44. h4 {[%clk
0:00:25.8]} 44... Kxb2 {[%clk 0:00:22.1]} 45. h5 {[%clk 0:00:27]} 45... Nc6+
{[%clk 0:00:24]} 46. Kf6 {[%clk 0:00:28]} 1-0